bitfinex/quotes_SOLUSD_20240622
["timestamp","ask_amount","ask_price","bid_price","bid_amount"]
[1719024705613,30.8571029,134.83,134.81,6.48]
[1719024707425,30.8571029,134.83,134.76,19.45]
[1719024707600,30.8571029,134.83,134.77,0.17]
[1719024707805,30.8571029,134.83,134.77,0.34]
[1719024710605,30.8571029,134.83,134.76,19.45]
[1719024714229,8.2479029,134.81,134.76,19.45]
[1719024714413,8.2479029,134.81,134.73,19.45]
[1719024714615,8.2479029,134.81,134.74,20.17]
[1719024717834,8.2479029,134.81,134.75,0.17]
[1719024720423,22.6092,134.83,134.75,0.17]
[1719024720424,30.8571029,134.83,134.75,0.17]
[1719024721042,30.8571029,134.83,134.76,19.45]
[1719024721340,30.8571029,134.83,134.77,0.34]
[1719024721635,30.8571029,134.83,134.76,19.45]
[1719024721812,8.2479029,134.81,134.76,19.45]
[1719024723818,8.2479029,134.81,134.74,20.0]
[1719024724023,8.2479029,134.81,134.73,20.0]
[1719024724242,8.2479029,134.79,134.73,20.0]
[1719024726455,16.1761,134.8,134.73,20.0]
[1719024726742,16.1761,134.8,134.74,0.34]
[1719024727522,16.1761,134.8,134.78,6.49]
[1719024727937,16.1761,134.8,134.74,0.34]
[1719024728249,16.1761,134.8,134.79,6.49]
[1719024729429,30.5628029,134.83,134.79,6.49]
[1719024729633,30.5628029,134.83,134.82,6.49]
[1719024734639,24.1297029,134.83,134.82,6.49]
[1719024734833,8.2479029,134.84,134.82,6.49]
[1719024735034,22.2941,134.86,134.83,6.49]
[1719024735228,22.2941,134.86,134.85,6.49]
[1719024735436,15.8818,134.86,134.85,6.49]
[1719024735749,8.2479029,134.88,134.85,6.49]
[1719024736453,8.2479029,134.88,134.86,6.49]
[1719024737152,8.2479029,134.88,134.85,6.49]
[1719024737538,8.2479029,134.88,134.82,25.96]
[1719024737539,8.2479029,134.88,134.86,6.49]
[1719024738537,8.2479029,134.88,134.85,6.49]
[1719024739759,8.2479029,134.88,134.86,6.49]
[1719024740929,8.2479029,134.88,134.82,25.96]
[1719024740930,8.2479029,134.88,134.87,6.49]
[1719024741728,15.8818,134.89,134.87,6.49]
[1719024741928,15.8818,134.89,134.88,6.49]
[1719024743348,14.6602029,134.9,134.88,6.49]
[1719024743552,14.6602029,134.9,134.89,6.49]
[1719024743553,8.2479029,134.9,134.89,6.49]
[1719024745235,15.8818,134.92,134.89,6.49]
[1719024745236,24.1297029,134.92,134.89,6.49]
[1719024745658,24.1297029,134.92,134.9,6.49]
[1719024746747,24.1297029,134.92,134.82,41.8418]
[1719024746947,24.1297029,134.92,134.9,6.49]
[1719024747167,24.1297029,134.92,134.89,6.49]
[1719024747369,24.1297029,134.92,134.9,6.49]
[1719024748964,24.1297029,134.92,134.91,6.49]
[1719024749761,24.1297029,134.92,134.91,6.47]
[1719024750758,24.1297029,134.92,134.9,6.47]
[1719024751134,24.1297029,134.92,134.89,6.47]
[1719024751341,8.2479029,134.9,134.83,20.0]
[1719024751554,8.2479029,134.88,134.87,6.47]
[1719024751952,8.2479029,134.88,134.83,20.0]
[1719024752150,8.2479029,134.88,134.86,6.47]
[1719024754949,8.2479029,134.88,134.87,6.47]
[1719024755151,8.2479029,134.9,134.87,6.47]
[1719024755464,24.1297029,134.92,134.89,6.47]
[1719024755858,24.1297029,134.92,134.91,6.47]
[1719024758157,24.1297029,134.92,134.9,6.47]
[1719024760749,24.1297029,134.92,134.83,26.4098]
[1719024761048,24.1297029,134.92,134.9,6.47]
[1719024761867,24.1297029,134.92,134.84,0.34]
[1719024762076,24.1297029,134.92,134.91,6.47]
[1719024763076,24.1297029,134.92,134.84,0.34]
[1719024763257,24.1297029,134.92,134.9,6.47]
[1719024763971,8.2479029,134.9,134.88,6.47]
[1719024764181,8.2479029,134.9,134.87,6.47]
[1719024765052,8.2479029,134.9,134.88,6.47]
[1719024765370,8.2479029,134.9,134.87,6.47]
[1719024765782,8.2479029,134.88,134.86,6.47]
[1719024766074,8.2479029,134.9,134.86,6.47]
[1719024766264,8.2479029,134.88,134.86,6.47]
[1719024766463,8.2479029,134.88,134.83,20.0]
[1719024766680,8.2479029,134.88,134.85,6.47]
[1719024766974,8.2479029,134.88,134.84,6.47]
[1719024767482,14.7068029,134.88,134.84,6.47]
[1719024767677,8.2479029,134.86,134.77,22.0325]
[1719024767869,8.2479029,134.86,134.82,6.47]
[1719024768070,8.2479029,134.86,134.81,6.47]
[1719024768387,8.2479029,134.82,134.75,25.88]
[1719024768562,16.4783,134.87,134.76,20.0]
[1719024768563,8.2479029,134.8,134.76,20.0]
[1719024768767,8.2479029,134.82,134.79,6.47]
[1719024769284,8.2479029,134.79,134.73,6.0695]
[1719024769491,8.2479029,134.79,134.78,6.47]
[1719024769669,8.2479029,134.79,134.77,6.47]
[1719024770186,8.2479029,134.79,134.71,15.963]
[1719024770370,8.2479029,134.79,134.77,6.47]
[1719024771375,8.2479029,134.79,134.72,20.0]
[1719024771566,8.2479029,134.79,134.73,0.34]
[1719024772582,24.3862029,134.81,134.73,0.34]
[1719024772791,24.3862029,134.81,134.75,19.46]
[1719024772966,8.2479029,134.79,134.75,19.46]
[1719024776481,8.2479029,134.79,134.73,0.34]
[1719024777387,8.2479029,134.79,134.72,39.46]
[1719024779197,6.4589,134.78,134.68,42.32667761]
[1719024779367,8.2479029,134.77,134.7,20.0]
[1719024779672,8.2479029,134.77,134.69,20.0]
[1719024779986,8.2479029,134.77,134.69,28.247903]
[1719024780798,16.1383,134.76,134.69,28.247903]
[1719024783978,8.2479029,134.75,134.69,28.247903]
[1719024784986,8.2479029,134.75,134.69,20.0]
[1719024785394,16.1383,134.76,134.69,20.0]
[1719024785592,16.1383,134.76,134.7,0.34]
[1719024786098,24.3862029,134.76,134.7,0.34]
[1719024786473,16.1383,134.76,134.69,20.0]
[1719024786673,16.1383,134.76,134.7,0.17]
[1719024786874,24.3862029,134.76,134.69,20.0]
[1719024791500,24.3862029,134.76,134.73,6.49]
[1719024792092,24.3862029,134.76,134.74,6.49]
[1719024792487,16.1383,134.76,134.74,6.49]
[1719024792693,24.3862029,134.76,134.69,20.0]
[1719024792894,24.3862029,134.76,134.74,6.49]
[1719024794491,8.2479029,134.74,134.72,6.49]
[1719024795286,16.1383,134.76,134.73,6.49]
[1719024795494,8.2479029,134.75,134.74,6.49]
[1719024796104,24.3862029,134.76,134.74,6.49]
[1719024796805,24.3862029,134.76,134.73,6.49]
[1719024797183,16.1383,134.76,134.73,6.49]
[1719024797401,16.1383,134.76,134.75,6.49]
[1719024803093,8.2479029,134.75,134.74,6.49]
[1719024803292,16.1383,134.76,134.69,20.0]
[1719024803592,16.1383,134.76,134.74,6.49]
[1719024806020,24.3862029,134.76,134.75,6.49]
[1719024807108,24.3862029,134.76,134.69,20.0]
[1719024807416,24.3862029,134.76,134.74,6.49]
[1719024807789,24.3862029,134.76,134.69,20.0]
[1719024808017,24.3862029,134.76,134.74,6.49]
[1719024809285,24.3862029,134.76,134.69,20.0]
[1719024809494,24.3862029,134.76,134.74,6.49]
[1719024809692,24.3862029,134.76,134.75,6.49]
[1719024812316,8.2479029,134.74,134.73,6.49]
[1719024812813,8.2479029,134.74,134.69,20.0]
[1719024813033,8.2479029,134.74,134.72,6.49]
[1719024813323,8.2479029,134.72,134.68,25.96]
[1719024813486,8.2479029,134.72,134.71,6.49]
[1719024816816,8.2479029,134.72,134.68,25.96]
[1719024817020,8.2479029,134.72,134.71,6.49]
[1719024817405,8.2479029,134.72,134.65,32.0564]
[1719024817599,8.2479029,134.7,134.66,20.0]
[1719024817794,8.2479029,134.7,134.68,6.49]
[1719024818014,13.0299,134.73,134.68,6.49]
[1719024818015,8.2479029,134.72,134.68,6.49]
[1719024818218,8.2479029,134.7,134.69,6.49]
[1719024818927,8.2479029,134.72,134.66,20.0]
[1719024819101,8.2479029,134.72,134.69,6.49]
[1719024819296,8.2479029,134.72,134.7,6.49]
[1719024819602,8.2479029,134.74,134.68,25.96]
[1719024819924,8.2479029,134.74,134.69,20.0]
[1719024820110,8.2479029,134.74,134.72,6.49]
[1719024821020,8.2479029,134.74,134.69,20.0]
[1719024821406,8.2479029,134.74,134.71,6.49]
[1719024821812,8.2479029,134.74,134.64,20.0]
[1719024822026,8.2479029,134.72,134.69,6.49]
[1719024822824,8.2479029,134.7,134.69,6.49]
[1719024824232,0.34,134.75,134.69,6.49]
[1719024824233,8.2479029,134.73,134.69,6.49]
[1719024824435,8.2479029,134.71,134.7,6.49]
[1719024826042,8.2479029,134.71,134.69,6.49]
[1719024828233,8.2479029,134.73,134.7,6.49]
[1719024828435,8.2479029,134.73,134.68,6.49]
[1719024828612,8.2479029,134.73,134.72,6.49]
[1719024831411,8.2479029,134.75,134.72,6.49]
[1719024831616,8.2479029,134.75,134.68,25.96]
[1719024831617,8.2479029,134.77,134.74,6.49]
[1719024831940,8.2479029,134.77,134.76,6.49]
[1719024832737,23.3154029,134.79,134.76,6.49]
[1719024832943,23.3154029,134.79,134.78,6.49]
[1719024833243,8.2479029,134.8,134.78,6.49]
[1719024833419,15.0675,134.82,134.72,15.7378]
[1719024833420,23.3154029,134.82,134.76,19.45]
[1719024834038,23.3154029,134.82,134.77,20.17]
[1719024834456,8.2479029,134.84,134.79,19.45]
[1719024835939,23.3154029,134.87,134.8,0.34]
[1719024836326,23.3154029,134.87,134.8,20.34]
[1719024838042,8.2479029,134.87,134.82,19.45]
[1719024838218,8.2479029,134.87,134.8,20.34]
[1719024838425,8.2479029,134.87,134.81,20.0]
[1719024838636,8.2479029,134.87,134.8,0.34]
[1719024843761,8.2479029,134.87,134.82,19.45]
[1719024844850,23.3154029,134.9,134.83,20.34]
[1719024845457,8.2479029,134.9,134.85,19.45]
[1719024845665,14.4505029,134.92,134.86,0.34]
[1719024845866,14.4505029,134.92,134.88,19.45]
[1719024845867,8.2479029,134.92,134.88,19.45]
[1719024846267,15.3944,134.94,134.88,19.45]
[1719024846570,8.2479029,134.95,134.89,20.34]
[1719024847870,8.2479029,134.95,134.91,19.45]
[1719024848059,8.2479029,134.95,134.92,0.34]
[1719024848248,8.2479029,134.95,134.91,19.45]
[1719024849459,8.2479029,134.95,134.92,0.34]
[1719024849661,8.2479029,134.97,134.92,0.34]
[1719024849871,8.2479029,134.95,134.92,0.34]
[1719024851878,8.2479029,134.95,134.91,19.45]
[1719024852173,8.2479029,134.95,134.9,0.17]
[1719024852375,8.2479029,134.95,134.91,0.17]
[1719024852583,8.2479029,134.95,134.91,0.34]
[1719024853149,8.2479029,134.95,134.9,0.34]
[1719024854385,8.2479029,134.95,134.89,39.45]
[1719024855562,8.2479029,134.93,134.89,39.45]
[1719024856953,7.4081,134.99,134.89,39.45]
[1719024856954,8.2479029,134.95,134.89,39.45]
[1719024857159,8.2479029,134.95,134.9,0.34]
[1719024859184,8.2479029,134.97,134.93,19.45]
[1719024859384,8.2479029,134.97,134.94,20.0]
[1719024863966,8.2479029,134.97,134.93,19.45]
[1719024864386,8.2479029,134.99,134.93,19.45]
[1719024865392,8.2479029,134.97,134.93,19.45]
[1719024865650,8.2479029,134.97,134.9,19.45]
[1719024865765,8.2479029,134.97,134.91,20.34]
[1719024865970,8.2479029,134.95,134.91,20.34]
[1719024866307,8.2479029,134.97,134.91,20.34]
[1719024866511,8.2479029,134.95,134.88,15.3944]
[1719024866791,8.2479029,134.95,134.87,26.35316226]
[1719024866963,8.2479029,134.95,134.89,20.0]
[1719024867165,8.2479029,134.93,134.89,20.0]
[1719024867393,8.2479029,134.93,134.88,20.0]
[1719024870185,16.4628,134.95,134.89,0.34]
[1719024870186,24.7107029,134.95,134.89,0.34]
[1719024871310,24.7107029,134.95,134.9,19.45]
[1719024871514,24.7107029,134.95,134.91,20.34]
[1719024871515,8.2479029,134.95,134.91,20.34]
[1719024871680,8.2479029,134.97,134.91,20.34]
[1719024874786,8.2479029,134.95,134.91,20.34]
[1719024874986,8.2479029,134.97,134.91,0.34]
[1719024875196,8.2479029,134.95,134.91,20.34]
[1719024875982,8.2479029,134.97,134.91,20.34]
[1719024879284,8.2479029,134.95,134.91,20.34]
[1719024879711,8.2479029,134.95,134.9,20.0]
[1719024879910,8.2479029,134.95,134.89,19.45]
[1719024880923,8.2479029,134.97,134.89,19.45]
[1719024881213,8.2479029,134.97,134.9,0.34]
[1719024881413,8.2479029,134.97,134.9,20.34]
[1719024881613,8.2479029,134.97,134.93,19.45]
[1719024881804,8.2479029,134.97,134.94,0.34]
[1719024889431,8.2479029,134.97,134.9,36.4628]
[1719024889619,8.2479029,134.97,134.9,20.0]
[1719024889925,8.2479029,134.95,134.9,20.0]
[1719024890702,8.2479029,134.95,134.91,0.17]
[1719024890913,8.2479029,134.95,134.91,0.34]
[1719024892810,8.2479029,134.97,134.91,0.34]
[1719024898426,24.7107029,134.99,134.91,15.6865]
[1719024898628,24.7107029,134.99,134.95,19.45]
[1719024898817,8.2479029,134.99,134.95,19.45]
[1719024902546,8.2479029,134.99,134.92,19.45]
[1719024902835,8.2479029,134.94,134.9,20.0]
[1719024903164,16.6652,134.97,134.89,19.45]
[1719024903165,8.2479029,134.92,134.89,19.45]
[1719024903312,8.2479029,134.94,134.89,19.45]
[1719024903505,8.2479029,134.92,134.86,19.45]
[1719024903710,8.2479029,134.92,134.87,20.0]
[1719024903915,8.2479029,134.92,134.86,19.45]
[1719024904117,8.2479029,134.92,134.85,19.45]
[1719024904315,8.2479029,134.92,134.83,6.90316226]
[1719024904833,8.2479029,134.92,134.83,23.56836226]
[1719024905219,8.2479029,134.92,134.84,20.0]
[1719024905419,8.2479029,134.92,134.87,19.45]
[1719024905706,8.2479029,134.92,134.88,0.17]
[1719024906116,14.3408029,134.92,134.87,19.45]
[1719024906322,14.3408029,134.92,134.84,39.45]
[1719024906538,8.2479029,134.9,134.84,39.45]
[1719024907646,8.2479029,134.9,134.85,0.17]
[1719024908836,8.2479029,134.9,134.85,0.34]
[1719024909132,14.3408029,134.92,134.85,0.34]
[1719024912330,8.2479029,134.9,134.85,0.17]
[1719024912648,8.2479029,134.9,134.84,20.0]
[1719024912818,8.2479029,134.9,134.83,20.0]
[1719024913013,8.2479029,134.88,134.83,20.0]
[1719024913725,8.2479029,134.9,134.84,0.17]
[1719024913937,8.2479029,134.9,134.84,0.34]
[1719024914549,8.2479029,134.88,134.84,0.34]
[1719024915564,8.2479029,134.9,134.84,0.34]
[1719024916735,8.2479029,134.9,134.83,20.0]
[1719024917053,8.2479029,134.88,134.83,20.0]
[1719024917231,8.2479029,134.88,134.82,19.79]
[1719024917232,8.2479029,134.88,134.82,0.34]
[1719024917546,8.2479029,134.88,134.82,20.34]
[1719024917744,8.2479029,134.88,134.82,20.0]
[1719024918231,8.2479029,134.86,134.82,20.0]
[1719024920426,8.2479029,134.88,134.82,20.0]
[1719024921635,8.2479029,134.9,134.83,0.17]
[1719024921839,8.2479029,134.9,134.84,19.45]
[1719024922046,8.2479029,134.9,134.85,0.34]
[1719024922225,8.2479029,134.9,134.84,19.45]
[1719024923148,16.6211,134.91,134.85,0.17]
[1719024923461,16.6211,134.91,134.87,19.45]
[1719024923638,16.6211,134.91,134.88,20.0]
[1719024924335,16.6211,134.91,134.87,19.45]
[1719024927455,16.6211,134.91,134.85,19.79]
[1719024927655,16.6211,134.91,134.86,20.0]
[1719024927838,16.6211,134.91,134.87,0.34]
[1719024928039,16.6211,134.91,134.86,20.0]
[1719024928248,8.2479029,134.9,134.86,20.0]
[1719024933371,8.2479029,134.9,134.89,6.47]
[1719024933671,8.2479029,134.9,134.86,20.0]
[1719024933858,8.2479029,134.9,134.89,6.47]
[1719024934464,8.2479029,134.9,134.85,20.34]
[1719024934666,8.2479029,134.9,134.89,6.47]
[1719024936269,8.2479029,134.92,134.89,12.94]
[1719024936469,8.2479029,134.92,134.91,6.47]
[1719024937339,8.2479029,134.92,134.89,19.58]
[1719024937871,8.2479029,134.92,134.9,0.17]
[1719024938166,8.2479029,134.92,134.9,0.34]
[1719024943174,24.8990029,134.94,134.9,0.34]
[1719024943372,24.8990029,134.94,134.9,20.34]
[1719024945350,8.2479029,134.96,134.9,20.34]
[1719024945557,23.8121029,134.99,134.92,19.41]
[1719024945780,23.8121029,134.99,134.95,19.41]
[1719024947569,30.4293029,135.03,134.95,19.41]
[1719024947766,30.4293029,135.03,134.98,19.41]
[1719024948461,8.2479029,135.03,134.98,19.41]
[1719024948777,8.2479029,135.03,134.99,20.34]
[1719024948962,0.8854764,135.04,135.01,19.41]
[1719024949279,0.8854764,135.04,135.02,0.34]
[1719024950360,0.8854764,135.04,135.02,20.34]
[1719024959384,0.8854764,135.04,135.03,12.92]
[1719024959569,0.8854764,135.04,135.03,52.64]
[1719024966687,0.8854764,135.04,135.03,32.3]
[1719024966992,0.8854764,135.04,135.03,6.46]
[1719024967295,0.8854764,135.04,135.03,12.92]
[1719024967995,0.8854764,135.04,135.03,6.46]
[1719024968374,0.8854764,135.04,135.03,12.92]
[1719024968796,0.8854764,135.04,135.03,6.46]
[1719024969285,0.8854764,135.04,135.03,6.8]
[1719024970470,0.8854764,135.04,135.03,13.26]
[1719024971296,0.8854764,135.04,134.96,22.3175]
[1719024971480,9.1333793,135.04,135.02,6.46]
[1719024971682,8.2479029,135.02,134.97,16.4869]
[1719024971869,8.2479029,135.02,135.01,6.46]
[1719024972888,8.2479029,135.02,134.98,20.0]
[1719024973074,8.2479029,135.02,135.01,6.46]
[1719024999217,0.8854764,135.04,134.97,20.0]
[1719024999218,8.2479029,135.0,134.97,20.0]
[1719024999391,8.2479029,134.98,134.94,20.0]
[1719024999587,8.2479029,134.98,134.97,6.46]
[1719025001393,8.2479029,134.96,134.9,28.7755]
[1719025001711,8.2479029,134.96,134.95,6.46]
[1719025004697,8.2479029,134.96,134.9,6.4065]
[1719025004920,8.2479029,134.96,134.95,6.46]
[1719025010119,8.2479029,134.96,134.94,6.46]
[1719025011118,8.2479029,134.94,134.87,22.369]
[1719025011299,8.2479029,134.94,134.92,6.46]
[1719025012097,8.2479029,134.92,134.91,6.46]
[1719025012609,8.2479029,134.92,134.88,20.0]
[1719025012818,8.2479029,134.92,134.91,6.46]
[1719025013015,8.2479029,134.92,134.87,20.0]
[1719025013319,8.2479029,134.92,134.91,6.46]
[1719025014847,8.2479029,134.94,134.91,6.46]
[1719025015126,8.2479029,134.91,134.86,20.0]
[1719025015337,8.2479029,134.93,134.89,6.46]
[1719025016624,8.2479029,134.91,134.89,6.46]
[1719025017124,8.2479029,134.91,134.9,6.46]
[1719025017328,8.2479029,134.91,134.86,20.0]
[1719025017513,8.2479029,134.91,134.9,6.46]
[1719025019007,8.2479029,134.94,134.9,6.46]
[1719025019207,23.7685029,134.96,134.93,6.46]
[1719025019417,8.2479029,134.96,134.95,6.46]
[1719025021721,8.2479029,134.96,134.94,6.46]
[1719025021929,8.2479029,134.94,134.93,6.46]
[1719025031021,8.2479029,134.96,134.93,6.46]
[1719025031222,8.2479029,134.96,134.95,6.46]
[1719025032346,23.7685029,134.99,134.95,6.46]
[1719025032631,23.7685029,134.99,134.98,6.46]
[1719025032813,8.2479029,134.99,134.98,6.46]
[1719025034937,8.2479029,134.99,134.98,6.63]
[1719025035239,8.2479029,134.99,134.98,6.8]
[1719025036619,8.2479029,134.99,134.98,26.8]
[1719025037536,8.2479029,135.02,134.98,26.8]
[1719025037741,8.2479029,135.02,135.01,6.46]
[1719025038450,9.1333793,135.04,135.01,6.46]
[1719025038623,9.1333793,135.04,135.03,6.46]
[1719025046844,9.1333793,135.04,135.02,6.46]
[1719025047034,9.1333793,135.04,135.01,6.46]
[1719025047238,8.2479029,135.02,135.01,6.46]
[1719025050638,8.2479029,135.02,134.98,20.17]
[1719025050639,8.2479029,135.0,134.93,15.0718]
[1719025050939,8.2479029,135.0,134.99,6.46]
[1719025054936,8.2479029,135.0,134.96,25.84]
[1719025055137,8.2479029,135.0,134.99,6.46]
[1719025057331,8.2479029,135.02,134.99,6.46]
[1719025057642,8.2479029,135.02,135.01,6.46]
[1719025064655,9.1333793,135.04,135.01,6.46]
[1719025064854,9.1333793,135.04,135.03,6.46]
[1719025068246,9.1333793,135.04,135.03,12.92]
[1719025068450,0.8854764,135.04,135.03,12.92]
[1719025068659,8.2479029,135.09,135.03,52.64]
[1719025068861,8.2479029,135.09,135.08,6.46]
[1719025071965,8.2479029,135.07,135.04,0.34]
[1719025072163,8.2479029,135.09,135.06,6.46]
[1719025072342,8.2479029,135.09,135.07,6.46]
[1719025076271,8.2479029,135.07,135.06,6.46]
[1719025081263,8.2479029,135.09,135.06,6.46]
[1719025081450,8.2479029,135.09,135.08,6.46]
[1719025089365,8.2479029,135.11,135.08,6.46]
[1719025089553,8.2479029,135.11,135.1,6.46]
[1719025093477,8.2479029,135.11,135.07,0.17]
[1719025093478,8.2479029,135.11,135.06,0.17]
[1719025093779,8.2479029,135.11,135.09,6.46]
[1719025094367,8.2479029,135.11,135.1,6.46]
[1719025108898,8.2479029,135.11,135.05,0.34]
[1719025109064,8.2479029,135.11,135.1,6.46]
[1719025115070,8.2479029,135.11,135.05,0.34]
[1719025115285,7.5222764,135.18,135.05,20.0]
[1719025115286,8.2479029,135.09,135.05,20.0]
[1719025115471,8.2479029,135.09,135.08,6.46]
[1719025116693,8.2479029,135.11,135.08,6.46]
[1719025116875,8.2479029,135.11,135.1,6.46]
[1719025119397,8.2479029,135.11,135.1,33.09]
[1719025119599,8.2479029,135.11,135.1,33.26]
[1719025122684,8.2479029,135.11,135.1,32.92]
[1719025122883,8.2479029,135.11,135.1,6.46]
[1719025124301,8.2479029,135.11,135.1,13.26]
[1719025124685,8.2479029,135.11,135.1,52.64]
[1719025127399,8.2479029,135.11,135.1,26.46]
[1719025127994,8.2479029,135.11,135.1,20.0]
[1719025128183,8.2479029,135.11,135.1,6.46]
[1719025128382,8.2479029,135.11,135.1,26.46]
[1719025129585,8.2479029,135.11,135.1,32.92]
[1719025130102,8.2479029,135.11,135.1,33.26]
[1719025133889,8.2479029,135.11,135.1,26.8]
[1719025137913,8.2479029,135.11,135.1,33.26]
[1719025138087,8.2479029,135.14,135.1,33.26]
[1719025138291,8.2479029,135.12,135.11,0.34]
[1719025138491,8.2479029,135.12,135.11,6.8]
[1719025139510,8.2479029,135.14,135.11,6.8]
[1719025139815,8.2479029,135.14,135.13,6.46]
[1719025141516,8.2479029,135.12,135.1,20.0]
[1719025141719,8.2479029,135.12,134.99,1.7520971]
[1719025141720,8.2479029,135.12,135.09,20.0]
[1719025141899,8.2479029,135.12,135.11,6.46]
[1719025142096,8.2479029,135.12,135.06,20.0]
[1719025142498,8.2479029,135.12,135.1,6.46]
[1719025144314,8.2479029,135.1,135.06,20.0]
[1719025144616,8.2479029,135.12,135.08,6.46]
[1719025144796,8.2479029,135.1,135.08,6.46]
[1719025145804,8.2479029,135.1,135.09,6.46]
[1719025146517,8.2479029,135.12,135.09,6.46]
[1719025146722,8.2479029,135.12,135.11,6.46]
[1719025157023,8.2479029,135.12,135.1,6.46]
[1719025157209,8.2479029,135.12,135.05,20.0]
[1719025157413,8.2479029,135.1,135.09,6.46]
[1719025160621,8.2479029,135.12,135.09,6.8]
[1719025160841,8.2479029,135.12,135.11,6.46]
[1719025163510,8.2479029,135.12,135.06,23.0854]
[1719025163511,8.2479029,135.12,135.1,6.46]
[1719025165030,8.2479029,135.12,135.11,6.46]
[1719025185065,8.2479029,135.12,135.11,6.8]
[1719025189066,8.2479029,135.12,135.11,6.46]
[1719025190639,8.2479029,135.12,135.11,6.63]
[1719025190963,8.2479029,135.12,135.11,6.8]
[1719025191166,8.2479029,135.12,135.1,6.46]
[1719025191372,8.2479029,135.12,135.11,6.46]
[1719025191937,8.2479029,135.12,135.1,6.46]
[1719025192237,8.2479029,135.12,135.06,16.5765]
[1719025192557,8.2479029,135.12,135.07,20.0]
[1719025192743,8.2479029,135.09,135.02,15.9519]
[1719025192944,8.2479029,135.09,135.08,6.46]
[1719025194340,8.2479029,135.09,135.03,40.596803]
[1719025194543,8.2479029,135.09,135.08,6.46]
[1719025200059,8.2479029,135.11,135.08,6.46]
[1719025200369,8.2479029,135.11,135.1,6.46]
[1719025202547,8.2479029,135.11,135.03,14.756803]
[1719025202763,8.2479029,135.11,135.09,6.46]
[1719025202947,8.2479029,135.11,135.04,0.34]
[1719025203153,8.2479029,135.11,135.04,20.34]
[1719025203371,8.2479029,135.11,135.1,6.46]
[1719025204265,8.2479029,135.14,135.1,6.46]
[1719025204570,8.2479029,135.16,135.13,6.46]
[1719025204868,8.2479029,135.16,135.15,6.46]
[1719025208674,8.2479029,135.16,135.15,6.63]
[1719025208971,8.2479029,135.16,135.15,26.8]
[1719025210357,8.2479029,135.16,135.1,25.84]
[1719025210553,8.2479029,135.16,135.15,6.46]
[1719025212841,8.2479029,135.16,135.15,6.8]
[1719025213560,0.8854764,135.18,135.15,6.8]
[1719025213753,0.8854764,135.18,135.17,6.46]
[1719025214556,9.1333793,135.18,135.1,25.84]
[1719025214771,9.1333793,135.18,135.17,6.46]
[1719025216078,8.2479029,135.16,135.08,22.5539]
[1719025216266,8.2479029,135.16,135.14,6.46]
[1719025216875,8.2479029,135.16,135.15,6.46]
[1719025217880,8.2479029,135.16,135.08,22.5539]
[1719025218090,8.2479029,135.14,135.12,6.46]
[1719025219879,8.2479029,135.14,135.13,6.46]
[1719025220914,8.2479029,135.16,135.13,26.63]
[1719025221197,8.2479029,135.16,135.08,22.5539]
[1719025221385,8.2479029,135.16,135.15,6.46]
[1719025222284,8.2479029,135.16,135.14,6.46]
[1719025222679,8.2479029,135.16,135.15,6.46]
[1719025223082,0.8854764,135.18,135.15,6.46]
[1719025223083,9.1333793,135.18,135.15,6.46]
[1719025223400,9.1333793,135.18,135.17,6.46]
[1719025223705,0.8854764,135.18,135.17,6.46]
[1719025226207,0.8854764,135.18,135.17,6.8]
[1719025230906,9.1333793,135.18,135.17,6.46]